Cogmind - Beta 10.1 @@@ ROGUE MODE // 2021.06.16 @ 01:18:16 // Winter2019/RPGLIKE Player: Farfid Result: Self-destructed Performance ------------- Evolutions (8) 4000 Regions Visited (30) 6000 Robots Destroyed (599) 2995 Value Destroyed (28637) 28637 Prototype IDs (73) 1460 Alien Tech Used (2) 400 Bonus (18024) 18024 TOTAL SCORE: 61516 Bonus ------- Triggered High Security 1000 High Alert Combat Kills 7491 Follower Combat Kills 1580 Met Data Miner 300 Met Imprinter 300 Destroyed Z-Imprinter 1000 Exposed GOLEM Chamber 500 Met Zhirov 300 Met Warlord at Base 500 MAIN.C Attacked Warlord 500 Warlord Defense Kill 3494 Met Warlord at Research 2000 Friendly Fire -941 Cogmind --------- Core Integrity 1800/1800 Matter 350/350 Energy 950/950 System Corruption 1% Temperature Cool (0) Movement Immobile (Siege) Location -2/Research Parts ------- > --- POWER (3) -------- Improved Quantum Reactor Vortex Chain Reactor > --- PROPULSION (8) --- Biometal Heavy Treads Biometal Heavy Treads Biometal Heavy Treads Advanced Heavy Siege Treads > --- UTILITY (9) ------ Advanced Power Amplifier Experimental Signal Interpreter Long-range Terrain Scanner Experimental Armor Integrity Analyzer Energy Filter Advanced Kinecellerator Thermal Barrier Experimental Force Field Long-range Tractor Beam > --- WEAPON (5) ------- Enhanced Nova Cannon Helical Railgun Helical Railgun Helical Railgun Improved Proton Missile Launcher > --- INVENTORY (6) ---- Experimental Energy Well (1000) System Restoration Module Advanced Remote Datajack Peak State ------------ > --- POWER ------------ Improved Quantum Reactor Vortex Chain Reactor > --- PROPULSION ------- Biometal Heavy Treads Biometal Heavy Treads Biometal Heavy Treads Advanced Heavy Siege Treads > --- UTILITY ---------- Advanced Power Amplifier Experimental Signal Interpreter Long-range Terrain Scanner Experimental Armor Integrity Analyzer Energy Filter Advanced Kinecellerator Thermal Barrier Experimental Force Field Long-range Tractor Beam > --- WEAPON ----------- Enhanced Nova Cannon Helical Railgun Helical Railgun Helical Railgun Improved Proton Missile Launcher > --- INVENTORY -------- Protomatter Protomatter Experimental Energy Well System Restoration Module Advanced Remote Datajack [Rating: 208] Favorites ----------- Power Zionite Light DM Reactor Engine Ion Engine Power Core Enhanced Fission Core Reactor Zionite Light DM Reactor Propulsion Biometal Heavy Treads Treads Biometal Heavy Treads Wheel Armored Huge Wheel Hover Unit Airjet Utility Long-range Tractor Beam Device Long-range Tractor Beam Storage Improved Energy Well Processor Experimental Signal Interpreter Protection Zionite Weapon Casing Weapon Precision Assault Rifle Energy Gun Force Rifle Energy Cannon Compact Ion Cannon Ballistic Gun Precision Assault Rifle Ballistic Cannon Heavy Gauss Cannon Launcher Improved Proton Missile Launcher Special Weapon Flamer Impact Weapon Powered Hammer Slashing Weapon Centrium Greatsword Build | -11 -10 -10 -10 -9 -8 -7 -7 -7 -7 -7 -7 -7 -6 -6 -6 -6 -6 -5 -5 -5 -5 -5 -4 -4 -4 -4 -4 -3 -3 -2 ------- Run | Scr Mat Min Exi Min Mat Fac Was Fac Low Low Zio Dee Pro Fac Low Low Dat Pro Fac Upp Upp Zhi Pro Fac Upp Upp War Pro Res Res Slots Evolved 20 | 3 . 1 . 1 3 2 . 2 . 1 . . . . . . . 1 2 . . . . 1 1 . . . 1 1 Power 2 | . . . . . . . . . . 1 . . . . . . . . 1 . . . . . . . . . . . Propulsion 6 | 1 . . . . 1 1 . . . . . . . . . . . 1 . . . . . . 1 . . . 1 . Utility 8 | 1 . 1 . 1 . 1 . 2 . . . . . . . . . . . . . . . 1 . . . . . 1 Weapon 4 | 1 . . . . 2 . . . . . . . . . . . . . 1 . . . . . . . . . . . Parts Attached 264 | 6 3 3 . 4 24 12 2 15 9 10 10 27 5 27 6 . . 6 28 4 . 5 . 9 2 1 12 6 12 16 Power 28 | 1 . . . 1 . 3 1 . . 1 . 2 . 2 . . . 2 8 1 . 2 . 2 . . 2 . . . Engine 4 | 1 . . . . . 2 . . . . . . . . . . . . 1 . . . . . . . . . . . Core 4 | . . . . 1 . 1 . . . 1 . . . . . . . . 1 . . . . . . . . . . . Reactor 20 | . . . . . . . 1 . . . . 2 . 2 . . . 2 6 1 . 2 . 2 . . 2 . . . Propulsion 23 | 2 . 1 . . 5 5 . . . . . 2 . 1 . . . . 4 . . . . 1 . . . . 1 1 Treads 6 | . . . . . . . . . . . . . . . . . . . 3 . . . . 1 . . . . 1 1 Leg . | . . . . . . . . . . . . . . . . . . . . . . . . . . . . . . . Wheel 7 | 2 . 1 . . . 2 . . . . . . . 1 . . . . 1 . . . . . . . . . . . Hover 10 | . . . . . 5 3 . . . . . 2 . . . . . . . . . . . . . . . . . . Flight . | . . . . . . . . . . . . . . . . . . . . . . . . . . . . . . . Utility 103 | . 3 1 . . 4 4 1 6 7 8 1 14 . 12 2 . . . 5 2 . 3 . 2 2 . 7 6 6 7 Device 71 | . . 1 . . 1 4 1 3 6 5 1 6 . 8 2 . . . 5 2 . 3 . . 1 . 5 6 4 7 Storage 9 | . . . . . . . . 1 . 1 . 3 . . . . . . . . . . . 2 . . . . 2 . Processor 11 | . 2 . . . 3 . . . . 1 . . . 2 . . . . . . . . . . 1 . 2 . . . Hackware . | . . . . . . . . . . . . . . . . . . . . . . . . . . . . . . . Protection 12 | . 1 . . . . . . 2 1 1 . 5 . 2 . . . . . . . . . . . . . . . . Artifact . | . . . . . . . . . . . . . . . . . . . . . . . . . . . . . . . Weapon 110 | 3 . 1 . 3 15 . . 9 2 1 9 9 5 12 4 . . 4 11 1 . . . 4 . 1 3 . 5 8 Energy Gun 24 | 1 . . . 1 5 . . . . . 1 6 2 3 . . . . 2 . . . . . . . 1 . 2 . Energy Cannon 20 | . . 1 . . . . . . . . . . . 7 2 . . 2 1 . . . . . . 1 1 . 3 2 Ballistic Gun 26 | 2 . . . 1 9 . . 2 . . . . 1 . . . . . 5 . . . . 3 . . 1 . . 2 Ballistic Cannon 20 | . . . . . . . . 5 1 1 4 2 . 1 . . . . 3 . . . . 1 . . . . . 2 Launcher 15 | . . . . 1 1 . . 2 1 . 1 1 2 . 2 . . 2 . 1 . . . . . . . . . 1 Special Weapon 1 | . . . . . . . . . . . 1 . . . . . . . . . . . . . . . . . . . Impact Weapon 3 | . . . . . . . . . . . 2 . . 1 . . . . . . . . . . . . . . . . Slashing Weapon 1 | . . . . . . . . . . . . . . . . . . . . . . . . . . . . . . 1 Piercing Weapon . | . . . . . . . . . . . . . . . . . . . . . . . . . . . . . . . Special Melee Weapon . | . . . . . . . . . . . . . . . . . . . . . . . . . . . . . . . Unidentified Prototypes 52 | . . . . . 3 2 . 3 . 2 1 12 . 3 . . . . 2 . . 4 . 2 . . 9 . 5 4 Parts Lost 2 | . . . . 2 . . . . . . . . . . . . . . . . . . . . . . . . . . Power . | . . . . . . . . . . . . . . . . . . . . . . . . . . . . . . . Propulsion . | . . . . . . . . . . . . . . . . . . . . . . . . . . . . . . . Utility 1 | . . . . 1 . . . . . . . . . . . . . . . . . . . . . . . . . . Weapon 1 | . . . . 1 . . . . . . . . . . . . . . . . . . . . . . . . . . Highest Loss Streak 1 | . . . . 1 . . . . . . . . . . . . . . . . . . . . . . . . . . Average Slot Usage (%) 84 | . 93 100 100 83 93 86 84 84 87 82 81 81 83 86 88 88 88 87 84 85 85 84 85 85 83 81 79 78 79 78 Core 1 | . . . . 10 9 3 . . . 1 5 2 . . . . . . 1 4 4 2 . . . . . . . . Reactor 8 | . . . . . . . 5 6 6 5 5 7 11 10 11 11 11 10 9 9 9 10 14 13 13 13 10 8 8 8 Treads 7 | . . . . . . . . . . . . . . . . . . . 11 14 14 14 14 13 13 13 13 13 16 16 Wheel 6 | . 28 25 25 22 5 11 14 12 12 11 11 11 11 14 16 16 16 15 3 . . . . . . . . . . . Device 23 | . . 10 12 6 7 16 21 23 28 27 25 21 16 19 27 27 27 26 24 23 23 24 28 27 26 26 23 25 24 25 Storage 2 | . . . . . . . . . . . . 2 5 5 5 5 5 5 4 4 4 2 . 3 4 4 4 . . . Processor 8 | . 16 25 25 22 24 15 14 12 12 11 11 11 11 9 5 5 5 5 4 4 4 4 4 4 4 4 5 8 8 8 Energy Gun 2 | . 14 . . 2 5 . . . . . . 10 21 5 5 5 5 5 2 . . . . . . . . . . . Energy Cannon 4 | . . 12 12 4 . . . . . . . . . 15 15 16 16 15 6 . . . . . . 3 4 4 3 3 Ballistic Gun 9 | . 14 12 12 14 21 29 28 15 12 11 11 5 . . . . . . 9 14 14 14 14 13 13 8 8 8 8 9 Ballistic Cannon 3 | . . . . . . . . 9 11 11 8 4 . . . . . . 3 4 4 4 4 4 4 4 4 4 4 1 Launcher 1 | . . . . . . . . . . . . . . . . . . . . 3 4 4 4 4 4 4 4 4 4 3 Naked Turns . | . . . . . . . . . . . . . . . . . . . . . . . . . . . . . . . Heaviest Build 127 | 8 11 11 11 11 18 29 36 45 46 67 67 67 50 60 59 59 59 63 96 101 101 105 104 104 101 108 127 127 126 126 Greatest Support 310 | 25 25 31 31 31 36 61 61 61 61 61 61 61 61 71 71 71 71 71 225 225 225 225 225 230 230 230 230 230 305 310 Greatest Overweight (x) 1 | . . . . . . . . . . 1 1 1 . . . . . . 1 . . . . . . . . . . . Average Overweight (x) . | . . . . . . . . . . . . . . . . . . . . . . . . . . . . . . . Largest Inventory Capacity 6 | 1 1 1 1 2 2 2 2 3 4 4 4 4 4 5 5 5 5 5 5 5 5 5 5 5 5 5 6 6 6 6 Average Capacity 4 | 1 1 1 1 1 2 2 2 2 4 4 4 4 4 4 5 5 5 5 5 5 5 5 5 5 5 5 5 6 6 6 Most Carried 6 | 1 . 1 1 2 2 2 2 3 4 4 4 4 4 5 5 5 5 5 5 5 4 4 5 5 5 5 6 6 6 6 Average Carried 4 | . . . 1 . 1 1 2 2 3 3 4 3 3 4 4 4 5 4 4 4 3 3 4 4 4 4 5 5 5 5 Final Capacity 6 | 1 1 1 1 2 2 2 2 4 4 4 4 4 4 5 5 5 5 5 5 5 5 5 5 5 5 5 6 6 6 6 Final Carried 6 | . . 1 1 1 2 2 2 3 4 4 4 4 4 5 5 5 5 5 5 4 3 4 5 5 5 5 6 6 6 3 Class Distribution -------------------- 24% | Generator-Skirmisher 23% | Generator-Mutant 18% | Scavenger-Skirmisher 11% | Skirmisher 9% | Mutant 5% | Gunner 3% | Scavenger-Mutant Dominant Class ---------------- Mutant | -10/Materials Mutant | -10/Mines Mutant | -10/Exiles Mutant | -9/Mines Gunner | -8/Materials Gunner | -7/Factory Gunner | -7/Waste Skirmisher | -7/Factory Skirmisher | -7/Lower Caves Skirmisher | -7/Lower Caves Assassin | -7/Zion Scavenger-Skirmisher | -7/Deep Caves Scavenger-Skirmisher | -6/Proximity Caves Scavenger-Skirmisher | -6/Factory Scavenger-Skirmisher | -6/Lower Caves Scavenger-Skirmisher | -6/Lower Caves Scavenger-Skirmisher | -6/Data Miner Scavenger-Skirmisher | -5/Proximity Caves Skirmisher | -5/Factory Generator-Mutant | -5/Upper Caves Generator-Skirmisher | -5/Upper Caves Generator-Skirmisher | -5/Zhirov Generator-Mutant | -4/Proximity Caves Generator-Mutant | -4/Factory Generator-Mutant | -4/Upper Caves Generator-Mutant | -4/Upper Caves Generator-Mutant | -4/Warlord Generator-Mutant | -3/Proximity Caves Generator-Skirmisher | -3/Research Generator-Skirmisher | -2/Research Resources | -11 -10 -10 -10 -9 -8 -7 -7 -7 -7 -7 -7 -7 -6 -6 -6 -6 -6 -5 -5 -5 -5 -5 -4 -4 -4 -4 -4 -3 -3 -2 ----------- Run | Scr Mat Min Exi Min Mat Fac Was Fac Low Low Zio Dee Pro Fac Low Low Dat Pro Fac Upp Upp Zhi Pro Fac Upp Upp War Pro Res Res Matter Collected 11843 | 254 102 111 . 143 451 573 374 642 180 326 94 347 78 373 105 . . 135 1180 421 184 . 546 1399 193 299 475 428 536 1894 Remotely 10753 | . . 61 . 110 . 475 374 642 180 326 17 347 78 373 105 . . 135 1180 421 184 . 546 1399 193 299 475 418 521 1894 Salvage Created 26330 | . 318 331 . 62 884 915 1191 642 88 300 . 229 508 2637 705 254 . 925 2331 645 227 . 1140 4007 216 385 1677 1402 930 3381 Parts 1322 | . 34 10 . 3 48 52 30 40 9 13 . 9 27 96 42 7 . 73 150 38 23 . 40 181 7 22 65 64 77 162 Haulers Intercepted 29 | . . . . . 2 5 . 5 . 1 . . . 8 . . . . 4 . . . . 2 . . . . 1 1 Recyclers Shooed 9 | . . 3 . . . . . 1 . . . . . 4 . . . . 1 . . . . . . . . . . . Parts Field Recycled . | . . . . . . . . . . . . . . . . . . . . . . . . . . . . . . . Retrieved Matter . | . . . . . . . . . . . . . . . . . . . . . . . . . . . . . . . Parts Self-Destructed 328 | . . . . . . . . . 9 16 1 . 24 . 41 7 . 80 . 9 13 . 5 . . 10 85 28 . . Prevented 155 | . . . . . . . . . . . . . . . . 1 . . . 23 13 . 32 . 7 7 36 36 . . Kills | -11 -10 -10 -10 -9 -8 -7 -7 -7 -7 -7 -7 -7 -6 -6 -6 -6 -6 -5 -5 -5 -5 -5 -4 -4 -4 -4 -4 -3 -3 -2 ------- Run | Scr Mat Min Exi Min Mat Fac Was Fac Low Low Zio Dee Pro Fac Low Low Dat Pro Fac Upp Upp Zhi Pro Fac Upp Upp War Pro Res Res Combat Hostiles Destroyed 483 | . 14 4 . 13 14 12 6 12 7 7 . 3 13 31 21 6 . 37 49 17 12 . 19 49 5 12 27 25 11 57 Guns 184 | . 14 1 . 5 14 12 6 6 . 2 . . 7 8 5 2 . 15 19 7 4 . 3 14 1 2 2 5 2 28 Cannons 148 | . . 3 . 5 . . . 2 1 5 . 3 . 23 12 3 . 16 29 . 1 . . 8 . 2 2 4 9 20 AOE 95 | . . . . 3 . . . 4 6 . . . 6 . 4 . . 6 . 6 7 . 9 13 . 6 10 9 . 6 Classes Destroyed 29 | . 3 1 . 1 5 2 1 2 . . . 1 . . 1 . . 2 1 . . . . 1 . . 1 . . 7 Worker 16 | . . . . . 3 . . 1 . . . . . 1 . . . . 5 . . . . 2 . . . . 4 . Builder 18 | . . . . . 1 2 . . . . . . . 2 . . . . . . . . . 7 . . . . 6 . Tunneler 3 | . . . . . . . . 1 . . . . . 1 . . . . 1 . . . . . . . . . . . Hauler 29 | . . . . . 2 5 . 5 . 1 . . . 8 . . . . 4 . . . . 2 . . . . 1 1 Recycler 15 | . . 3 . . . . . 2 . . . . . 4 . . . . 1 . . . . 4 . . . . 1 . Mechanic 4 | . . . . . . . . 1 . . . . . 1 . . . . . . . . . 1 . . 1 . . . Operator 4 | . . . . . . . . . . . . . . . . . . . 2 . . . . 2 . . . . . . Watcher 23 | . 1 . . . 2 1 . . . . . . . 2 . . . . 4 . . . . 6 . . . . 4 3 Swarmer 125 | . 9 . . 3 3 . . 6 6 1 . . 7 7 6 3 . 21 8 6 10 . 5 . . 5 5 10 . 4 Saboteur 1 | . . . . . . . . . . . . . . . . . . . . . . . . 1 . . . . . . Grunt 175 | . 5 4 . . 5 6 . 4 1 4 . . 5 15 12 2 . 9 21 5 . . 6 31 4 4 14 4 2 12 Brawler 14 | . . . . . . . . . . . . . . . 2 . . 2 1 . . . 1 3 . . 3 1 1 . Duelist 11 | . . . . . . 1 . . . . . . 1 . . 1 . . . 2 . . 1 4 . . 1 . . . Protector 3 | . . . . . . . . . . . . . . . . . . 1 . . . . . 1 . . 1 . . . Sentry 34 | . . . . . 5 2 . 1 . 1 . . . 1 1 . . 2 8 2 1 . 1 2 . . . 1 3 3 Demolisher 3 | . . . . . . . . . . . . . . . . . . . . . . . . . . . . . . 3 Hunter 29 | . . . . . 1 1 . 1 . . . . . 1 . . . . 2 2 . . 4 5 . 2 . 4 1 5 Programmer 30 | . . . . . . 2 . . . 1 . . . 7 . . . 1 9 . . . . 2 . . 1 2 4 1 Behemoth 6 | . . . . . . . . . . . . . . . . . . 1 . . 1 . 1 . 1 1 . . . 1 Compactor 6 | . . . . . . . 6 . . . . . . . . . . . . . . . . . . . . . . . Striker 8 | . . . . . . . . . . . . . . . . . . . . . . . . . . . . . . 8 Executioner 6 | . . . . . . . . . . . . . . . . . . . . . . . . . . . 2 . . 4 Z-Light 3 | . . . . . . . . . . . . 3 . . . . . . . . . . . . . . . . . . Assembled 10 | . . . . 10 . . . . . . . . . . . . . . . . . . . . . . . . . . Wasp 2 | . . . . . . . . 2 . . . . . . . . . . . . . . . . . . . . . . Savage 6 | . . . . . . . . . . . . . . . . . . . . . . . . . . . . 3 . 3 Butcher 2 | . . . . . . . . . . . . . . . . . . . . . . . . . . . . . . 2 Marauder 3 | . . . . . . . . . . . . . . . . . . . . . . . . . . . . . . 3 Fireman 4 | . . . . . . . . . . . . . . . . . . . . . . . . . . . . . . 4 Mutant 1 | . . . . . . . . . . . . . . . . . . . . . . . . . . . . . . 1 Troll 1 | . . . . . . . . . . . . . . . . . . . . . . . . . . . . . . 1 Dragon 2 | . . . . . . . . . . . . . . . . . . . . . . . . . . . . . . 2 Hydra 2 | . . . . . . . . . . . . . . . . . . . . . . . . . . . . . . 2 Best Kill Streak 14 | . 3 3 . 5 4 5 2 4 3 4 . 3 4 5 4 3 . 9 7 5 5 . 6 14 4 5 13 5 6 10 Combat Bots Only 13 | . 3 2 . 5 3 4 2 4 3 4 . 3 4 4 4 3 . 9 5 5 5 . 6 13 4 5 12 5 2 10 Max Kills in Single Turn 5 | . 1 1 . 2 2 2 1 2 2 1 . 1 3 2 2 1 . 4 3 3 3 . 2 4 2 5 4 2 3 3 Gunslinging 1 | . . . . . . . . . . . . . 1 . . . . . . 1 . . . . . . . . . . Exploded 5 | . . . . 2 . . . 2 2 . . . 3 . 2 . . 4 . 3 3 . 2 3 . 5 4 2 . 3 Melee . | . . . . . . . . . . . . . . . . . . . . . . . . . . . . . . . Uniques/NPCs Destroyed 1 | . . . . . . . . . . . . 1 . . . . . . . . . . . . . . . . . . Z-Imprinter (-7/Deep Caves) Combat | -11 -10 -10 -10 -9 -8 -7 -7 -7 -7 -7 -7 -7 -6 -6 -6 -6 -6 -5 -5 -5 -5 -5 -4 -4 -4 -4 -4 -3 -3 -2 -------- Run | Scr Mat Min Exi Min Mat Fac Was Fac Low Low Zio Dee Pro Fac Low Low Dat Pro Fac Upp Upp Zhi Pro Fac Upp Upp War Pro Res Res Damage Taken 15162 | . 354 80 . 873 449 350 . 361 152 261 . 340 229 974 569 171 . 1127 1573 177 333 . 390 1581 133 486 1024 457 219 2499 Core 11859 | . 275 65 . 735 369 279 . 274 119 202 . 272 157 711 458 139 . 911 1256 134 258 . 300 1209 103 378 803 348 163 1941 Absorbed by Shields 7660 | . . . . . . . . . . . . 7 . . . . . . 385 185 345 . 404 1641 136 501 765 478 229 2584 Reduced by Siege Mode 125 | . . . . . . . . . . . . . . . . . . . 4 . . . 12 13 5 11 . . . 80 Redirected to Core 10165 | . 166 55 . 443 257 238 . 226 106 164 . 248 109 591 384 106 . 731 1076 117 229 . 300 1148 94 359 741 339 163 1775 Core Remaining (%) 81 | 100 . . . 25 34 . . . . . . . 95 . . . . 100 . . . . 98 . . . . 100 100 . Volleys Fired 1107 | . 31 18 . 30 43 38 42 42 9 16 2 26 13 96 39 19 . 51 107 28 19 . 36 112 13 26 37 43 41 130 Largest 5 | . 2 2 . 2 4 4 4 4 4 4 1 4 4 4 4 4 . 4 5 4 4 . 4 4 4 4 4 4 4 4 Hottest 360 | . 60 80 . 85 168 100 100 152 152 152 100 253 253 360 350 350 . 350 350 141 141 . 141 166 166 241 241 244 247 247 Shots Fired 3164 | . 62 36 . 55 117 151 167 133 18 59 2 76 39 310 113 56 . 160 406 45 60 . 72 247 28 69 73 72 115 423 Gun 1805 | . 62 18 . 38 115 151 167 79 6 30 . 71 35 77 36 9 . 46 196 24 45 . 36 138 18 28 27 19 52 282 Cannon 1159 | . . 18 . 15 . . . 53 8 29 . 5 . 233 74 47 . 109 210 1 11 . 14 58 5 34 23 25 63 124 Launcher 198 | . . . . 2 2 . . 1 4 . . . 4 . 3 . . 5 . 20 4 . 22 51 5 7 23 28 . 17 Special 2 | . . . . . . . . . . . 2 . . . . . . . . . . . . . . . . . . . Kinetic 1758 | . 31 18 . 29 75 151 167 132 14 59 . 23 . . . . . . 208 25 56 . 50 196 23 44 39 29 78 311 Thermal 1176 | . 31 18 . 24 40 . . . . . 2 39 27 301 110 56 . 155 198 . . . . . . 18 10 15 37 95 Explosive 21 | . . . . 2 2 . . 1 4 . . . 4 . 3 . . 5 . . . . . . . . . . . . Electromagnetic 177 | . . . . . . . . . . . . . . . . . . . . 20 4 . 22 51 5 7 23 28 . 17 Entropic 1 | . . . . . . . . . . . . . . . . . . . . . . . . . . . 1 . . . Phasic 31 | . . . . . . . . . . . . 14 8 9 . . . . . . . . . . . . . . . . Robot Hit Streak 66 | . 11 18 . 9 40 23 29 12 22 20 . 7 20 23 18 13 . 22 66 13 22 . 30 57 8 28 30 22 47 45 Robot Miss Streak 3 | . 3 2 . 2 1 2 2 3 1 2 . 2 1 1 2 2 . 3 1 1 1 . 1 1 1 1 2 2 1 2 Penetration Max 1 | . . . . . . . . . . . . . . . . . . . 1 . . . . 1 . 1 1 1 1 1 Secondary Targets 15 | . 1 . . 1 1 1 3 1 . . . . 2 . . . . . . 2 1 . . . . . . . . 2 Max Gunslinging Chain 1 | . 1 . . 1 1 1 1 1 . . . . 1 . . . . . . 1 1 . . . . . . . . 1 Shots Hit Robots 2150 | . 44 25 . 37 80 96 146 65 11 41 . 17 29 205 66 18 . 87 288 27 52 . 54 183 20 59 55 40 85 320 Core Hits 1104 | . 21 11 . 21 44 37 27 28 12 13 . 8 20 78 35 8 . 60 118 31 18 . 32 143 9 23 66 41 47 153 Critical Hits 113 | . . . . . . 3 1 . . 1 . . . 3 4 1 . 6 14 . . . 1 17 5 7 7 2 12 29 Critical Kills 36 | . . . . . . 1 . . . . . . . . 2 1 . 3 4 . . . . 6 . 2 2 2 6 7 Critical Parts Destroyed 61 | . . . . . . 2 . . . 1 . . . 2 2 . . 3 9 . . . 1 10 1 1 5 . 6 18 Melee Attacks 37 | . . . . . . . . . . . 37 . . . . . . . . . . . . . . . . . . . Impact 37 | . . . . . . . . . . . 37 . . . . . . . . . . . . . . . . . . . Slashing . | . . . . . . . . . . . . . . . . . . . . . . . . . . . . . . . Piercing . | . . . . . . . . . . . . . . . . . . . . . . . . . . . . . . . Sneak Attacks . | . . . . . . . . . . . . . . . . . . . . . . . . . . . . . . . Combat Hostiles . | . . . . . . . . . . . . . . . . . . . . . . . . . . . . . . . Follow-up Attacks . | . . . . . . . . . . . . . . . . . . . . . . . . . . . . . . . Damage Inflicted 79878 | . 515 392 . 673 1199 1494 2855 2164 806 780 . 366 1439 6782 2572 686 . 3808 9013 1423 1598 . 2720 8992 1060 2817 5026 2411 4143 14144 Guns 33382 | . 515 131 . 348 1198 1494 2855 959 131 391 . 279 785 1587 780 86 . 985 3898 249 881 . 765 2677 385 709 845 331 1946 8172 Cannons 26680 | . . 261 . 226 . . . 572 120 389 . 87 . 5195 1317 600 . 1969 4440 . 390 . 312 1371 169 1257 989 385 2197 4434 Explosions 19807 | . . . . 99 1 . . 633 555 . . . 654 . 475 . . 854 675 1174 327 . 1643 4935 506 851 3192 1695 . 1538 Melee . | . . . . . . . . . . . . . . . . . . . . . . . . . . . . . . . Ramming 9 | . . . . . . . . . . . . . . . . . . . . . . . . 9 . . . . . . Kinetic 34931 | . 255 131 . 220 752 1494 2855 1531 251 780 . 366 . . . . . . 4220 249 1271 . 1077 4048 554 1263 1406 374 2716 9118 Thermal 28910 | . 260 261 . 354 446 . . 204 . . . . 620 6650 2170 686 . 2954 4793 106 . . 131 919 . 1165 1372 342 1427 4050 Explosive 2924 | . . . . 99 1 . . 359 555 . . . 654 . 402 . . 854 . . . . . . . . . . . . Electromagnetic 12807 | . . . . . . . . 70 . . . . . . . . . . . 1068 327 . 1512 4016 506 389 2248 1695 . 976 Impact . | . . . . . . . . . . . . . . . . . . . . . . . . . . . . . . . Slashing . | . . . . . . . . . . . . . . . . . . . . . . . . . . . . . . . Piercing . | . . . . . . . . . . . . . . . . . . . . . . . . . . . . . . . Phasic 297 | . . . . . . . . . . . . . 165 132 . . . . . . . . . . . . . . . . Highest Corruption 8 | . 2 2 2 2 . 2 2 6 6 2 . . . 6 . . . . 5 5 . . . 7 7 7 8 4 3 1 Average Corruption 3 | . 2 2 2 2 . 1 2 4 4 1 . . . 4 . . . . 2 3 . . . 6 7 7 2 3 2 1 Corruption Purged 21 | . . . . . . . . . 4 2 . . . 6 . . . . . 5 . . . . . . . 4 . . Effects 324 | . 4 4 1 7 . 6 7 40 13 . . . . 63 . . . . 39 19 . . . 29 23 32 5 30 1 1 Message Errors 66 | . 1 1 . 3 . 1 2 6 3 . . . . 11 . . . . 8 6 . . . 5 8 6 1 4 . . Matter Fused 49 | . . . . . . . . 5 1 . . . . 11 . . . . 6 3 . . . 6 5 5 1 6 . . Heat Flow Errors 30 | . . . . 1 . . 1 6 3 . . . . 2 . . . . 4 2 . . . 1 3 1 . 6 . . Energy Discharges 42 | . 1 . 1 1 . 1 . 7 2 . . . . 7 . . . . 5 2 . . . . 3 6 2 4 . . Parts Rejected 1 | . . . . . . . . . . . . . . 1 . . . . . . . . . . . . . . . . Data Loss (minor) 29 | . . 1 . . . . 1 2 2 . . . . 8 . . . . 2 3 . . . . 1 2 1 4 1 1 Data Loss (major) 12 | . . . . . . . . 3 1 . . . . 2 . . . . 2 . . . . 3 . 1 . . . . Misfires 3 | . . . . . . . . 1 . . . . . . . . . . . . . . . . . 2 . . . . Targeting Errors 79 | . 2 2 . 2 . 3 2 8 1 . . . . 20 . . . . 8 3 . . . 12 3 8 . 5 . . Weapon Failures 13 | . . . . . . 1 1 2 . . . . . 1 . . . . 4 . . . . 2 . 1 . 1 . . Overload Shots . | . . . . . . . . . . . . . . . . . . . . . . . . . . . . . . . Overflow Damage 1665 | . . . . 1 . . . 48 30 20 . . 10 348 67 26 . 83 191 2 10 . 2 215 4 178 104 18 155 153 Projectiles 1151 | . . . . 1 . . . 48 . 20 . . . 348 19 26 . 75 118 . 8 . . 95 . 50 61 . 155 127 Explosions 514 | . . . . . . . . . 30 . . . 10 . 48 . . 8 73 2 2 . 2 120 4 128 43 18 . 26 Melee . | . . . . . . . . . . . . . . . . . . . . . . . . . . . . . . . Knockbacks 39 | . . . . . . . . 6 1 5 . . . . . . . . 5 . . . 1 10 . 1 5 . 3 2 Impact . | . . . . . . . . . . . . . . . . . . . . . . . . . . . . . . . Kinetic 37 | . . . . . . . . 5 1 5 . . . . . . . . 5 . . . 1 10 . 1 5 . 2 2 Secondary 2 | . . . . . . . . 1 . . . . . . . . . . . . . . . . . . . . 1 . Self-Inflicted Damage 605 | . . . . 40 14 . . 21 . . . . 40 . 58 . . . . . . . . 98 . . 236 22 . 76 Shots 28 | . . . . 2 1 . . 1 . . . . 1 . 1 . . . . . . . . 7 . . 8 2 . 5 Rammed 1 | . . . . . . . . . . . . . . . . . . . . . . . . 1 . . . . . . Targets Rammed 1 | . . . . . . . . . . . . . . . . . . . . . . . . 1 . . . . . . Kicked . | . . . . . . . . . . . . . . . . . . . . . . . . . . . . . . . Crushed . | . . . . . . . . . . . . . . . . . . . . . . . . . . . . . . . Highest Temperature 546 | . 12 33 . 238 384 116 145 245 100 12 . 126 72 546 120 60 . 78 211 155 . . . 77 90 136 182 144 197 . Average Temperature 64 | . 9 18 . 57 176 45 62 58 50 7 . 60 34 112 33 26 . 28 33 83 . . . 77 81 78 120 68 122 . Received Heat Transfer 2921 | . 120 51 . 133 207 78 . 111 9 114 . 111 54 327 255 12 . 165 383 24 48 . 30 303 32 48 83 39 8 176 Effects 3 | . . . . . . . . 1 . . . . . 2 . . . . . . . . . . . . . . . . Interference 2 | . . . . . . . . 1 . . . . . 1 . . . . . . . . . . . . . . . . Short Circuit 1 | . . . . . . . . . . . . . . 1 . . . . . . . . . . . . . . . . Siege Activations 16 | . . . . . . . . . . . . . . . . . . . 2 . . . 1 1 1 1 . . . 10 Total Turns 527 | . . . . . . . . . . . . . . . . . . . 37 . . . 31 26 12 28 . . . 393 Longest Duration 119 | . . . . . . . . . . . . . . . . . . . 22 . . . 31 26 12 28 . . . 119 Robots Corrupted 57 | . . . . . . . . . . . . . . . . . . . . 4 . . 7 18 4 2 13 7 . 2 Combat Hostiles 52 | . . . . . . . . . . . . . . . . . . . . 4 . . 6 14 4 2 13 7 . 2 Parts Fried 120 | . . . . . . . . . . . . . . . . . . . . 10 1 . 14 41 7 4 18 15 . 10 Impact Corruptions 1 | . . . . . . . . 1 . . . . . . . . . . . . . . . . . . . . . . Robots Melted 3 | . . . . . . . . . . . . . . 1 . 1 . . 1 . . . . . . . . . . . Combat Hostiles 2 | . . . . . . . . . . . . . . . . 1 . . 1 . . . . . . . . . . . Parts Melted 61 | . . 2 . 1 3 . . . . . . . 4 23 3 . . 7 14 . . . 1 1 . . 1 . . 1 Heat Transferred 32612 | . 600 555 . 777 1110 . . 100 . . . . 777 8380 2663 816 . 3212 5987 50 . . 50 800 . 1005 1224 200 1162 3144 Parts Sabotaged . | . . . . . . . . . . . . . . . . . . . . . . . . . . . . . . . Parts Stolen . | . . . . . . . . . . . . . . . . . . . . . . . . . . . . . . . Parts Stripped . | . . . . . . . . . . . . . . . . . . . . . . . . . . . . . . . Power Chain Reactions 23 | . . . . . . . . . . . . . . . . . . . . 2 . . 2 8 . 2 6 1 . 2 Missiles Intercepted . | . . . . . . . . . . . . . . . . . . . . . . . . . . . . . . . Alert | -11 -10 -10 -10 -9 -8 -7 -7 -7 -7 -7 -7 -7 -6 -6 -6 -6 -6 -5 -5 -5 -5 -5 -4 -4 -4 -4 -4 -3 -3 -2 ------- Run | Scr Mat Min Exi Min Mat Fac Was Fac Low Low Zio Dee Pro Fac Low Low Dat Pro Fac Upp Upp Zhi Pro Fac Upp Upp War Pro Res Res Peak Influence 1952 | . 382 223 . 75 494 545 142 1259 . . . . . 610 . . . . 1679 . . . . 1952 . . . . 457 917 Initial 400 | . . 148 . . 29 105 142 . . . . . . 63 . . . . 400 . . . . 42 . . . . . 172 Average 472 | . 199 118 . 36 247 288 80 665 . . . . . 194 . . . . 1084 . . . . 580 . . . . 144 517 Maximum Alert Level 5 | . 1 1 . . 2 2 . 4 . . . . . 2 . . . . 5 . . . . 5 . . . . 2 3 Low Security (%) 35 | 100 37 93 . 100 34 38 100 14 . . . . . 59 . . . . . . . . . 34 . . . . 71 12 Level 1 22 | . 62 6 . . 55 39 . 17 . . . . . 24 . . . . . . . . . 20 . . . . 23 31 Level 2 16 | . . . . . 10 21 . 18 . . . . . 15 . . . . 33 . . . . 17 . . . . 4 16 Level 3 13 | . . . . . . . . 31 . . . . . . . . . . 9 . . . . 2 . . . . . 38 Level 4 9 | . . . . . . . . 18 . . . . . . . . . . 47 . . . . 13 . . . . . . Level 5 1 | . . . . . . . . . . . . . . . . . . . 3 . . . . 5 . . . . . . High Security 1 | . . . . . . . . . . . . . . . . . . . 6 . . . . 5 . . . . . . Max Security . | . . . . . . . . . . . . . . . . . . . . . . . . . . . . . . . Squads Dispatched 68 | . 3 1 . . 1 5 . 11 . . . . . 7 . . . 1 21 . . . . 14 . 1 . . 1 2 Investigation 13 | . 1 1 . . . 3 . 3 . . . . . . . . . . 4 . . . . . . 1 . . . . Extermination 13 | . . . . . . 1 . 2 . . . . . 5 . . . . 2 . . . . 2 . . . . 1 . Reinforcement 18 | . 2 . . . 1 1 . 5 . . . . . 2 . . . . 1 . . . . 4 . . . . . 2 Assault 18 | . . . . . . . . 1 . . . . . . . . . 1 8 . . . . 8 . . . . . . Garrison 6 | . . . . . . . . . . . . . . . . . . . 6 . . . . . . . . . . . Intercept . | . . . . . . . . . . . . . . . . . . . . . . . . . . . . . . . Construction Impeded 7 | . . . . . . . . 3 . . . . . . . . . . . . . . . 4 . . . . . . Haulers Reinforced 7 | . . . . . . 1 . 2 . . . . . 2 . . . . 1 . . . . . . . . . . 1 Stealth | -11 -10 -10 -10 -9 -8 -7 -7 -7 -7 -7 -7 -7 -6 -6 -6 -6 -6 -5 -5 -5 -5 -5 -4 -4 -4 -4 -4 -3 -3 -2 --------- Run | Scr Mat Min Exi Min Mat Fac Was Fac Low Low Zio Dee Pro Fac Low Low Dat Pro Fac Upp Upp Zhi Pro Fac Upp Upp War Pro Res Res Distress Signals 21 | . 1 . . . 1 . . 3 . . . . . . . . . . 3 . . . . 3 . . . . . 10 Communications Jammed . | . . . . . . . . . . . . . . . . . . . . . . . . . . . . . . . Distress Signals . | . . . . . . . . . . . . . . . . . . . . . . . . . . . . . . . Times Spotted 678 | . 18 4 . 23 18 18 6 33 10 9 . 14 13 43 22 8 . 47 66 18 8 . 18 91 6 7 55 28 20 75 Peak Tracking Total 13 | . 4 2 . 7 4 4 3 4 4 5 . 6 4 5 4 2 . 9 7 5 5 . 5 12 4 4 13 5 3 9 Tactical Retreats 29 | . . . . 1 2 2 . 1 . . . . . 2 1 3 . 2 4 2 . . 1 2 1 . 1 2 . 2 Traps | -11 -10 -10 -10 -9 -8 -7 -7 -7 -7 -7 -7 -7 -6 -6 -6 -6 -6 -5 -5 -5 -5 -5 -4 -4 -4 -4 -4 -3 -3 -2 ------- Run | Scr Mat Min Exi Min Mat Fac Was Fac Low Low Zio Dee Pro Fac Low Low Dat Pro Fac Upp Upp Zhi Pro Fac Upp Upp War Pro Res Res Traps Triggered 18 | . 2 . . . . 1 . 3 . . . . . 2 . . . . 4 . . . . . . . 5 . 1 . Indirectly 4 | . . . . . . . . . . . . . . . . . . . . . . . . . . . 4 . . . Trap Hack Attempts . | . . . . . . . . . . . . . . . . . . . . . . . . . . . . . . . Triggered . | . . . . . . . . . . . . . . . . . . . . . . . . . . . . . . . Disarmed . | . . . . . . . . . . . . . . . . . . . . . . . . . . . . . . . Reprogrammed . | . . . . . . . . . . . . . . . . . . . . . . . . . . . . . . . Reused 1 | . . . . . . . . . . . . . . . . . . . . . . . . . . . . 1 . . Traps Extracted . | . . . . . . . . . . . . . . . . . . . . . . . . . . . . . . . Installed 2 | . . . . . . . . . . . . . . . . . . . . . . . . . . . . 2 . . Triggered 8 | . . . . . . . . . . . . . . . . 1 . . . . 1 . . . . . 4 2 . . Machines | -11 -10 -10 -10 -9 -8 -7 -7 -7 -7 -7 -7 -7 -6 -6 -6 -6 -6 -5 -5 -5 -5 -5 -4 -4 -4 -4 -4 -3 -3 -2 ---------- Run | Scr Mat Min Exi Min Mat Fac Was Fac Low Low Zio Dee Pro Fac Low Low Dat Pro Fac Upp Upp Zhi Pro Fac Upp Upp War Pro Res Res Machines Disabled 81 | . 1 . . . . 1 . 13 . . 3 3 . 8 3 . . 2 8 1 . . 1 25 . 2 . 1 3 6 Max in Single Turn 11 | . 1 . . . . 1 . 3 . . 1 1 . 2 2 . . 1 4 1 . . 1 11 . 2 . 1 1 2 Garrison Access 3 | . . . . . . . . . . . . . . . . . . . . . . . . 2 . . . . . 1 Machines Sabotaged . | . . . . . . . . . . . . . . . . . . . . . . . . . . . . . . . Garrisons Compromised . | . . . . . . . . . . . . . . . . . . . . . . . . . . . . . . . Overloaded Fab Kills 2 | . . . . . . 2 . . . . . . . . . . . . . . . . . . . . . . . . Fab Network Shutdowns 2 | . . . . . . . . . . . . . . . . . . . 1 . . . . 1 . . . . . . Hacking | -11 -10 -10 -10 -9 -8 -7 -7 -7 -7 -7 -7 -7 -6 -6 -6 -6 -6 -5 -5 -5 -5 -5 -4 -4 -4 -4 -4 -3 -3 -2 --------- Run | Scr Mat Min Exi Min Mat Fac Was Fac Low Low Zio Dee Pro Fac Low Low Dat Pro Fac Upp Upp Zhi Pro Fac Upp Upp War Pro Res Res Machines Accessed 78 | . 2 1 1 . 3 6 . 7 1 . . . . 15 . . 4 . 15 . . 4 . 13 1 2 1 . 1 1 Terminals 48 | . 2 1 . . 3 4 . 6 1 . . . . 11 . . . . 10 . . . . 8 . 1 . . 1 . Fabricators 8 | . . . . . . 2 . . . . . . . 1 . . . . 2 . . . . 3 . . . . . . Repair Stations . | . . . . . . . . . . . . . . . . . . . . . . . . . . . . . . . Recycling Units 3 | . . . . . . . . 1 . . . . . . . . . . 2 . . . . . . . . . . . Scanalyzers 1 | . . . . . . . . . . . . . . 1 . . . . . . . . . . . . . . . . Garrison Access 6 | . . . . . . . . . . . . . . 2 . . . . 1 . . . . 2 . . . . . 1 Total Hacks 216 | . 3 7 1 . 10 15 . 21 5 . . . . 33 . . 27 . 38 . . 17 . 28 1 5 1 . 3 1 Successful 112 | . . 4 1 . 5 4 . 11 . . . . . 13 . . 27 . 12 . . 17 . 14 1 1 1 . . 1 Failed 104 | . 3 3 . . 5 11 . 10 5 . . . . 20 . . . . 26 . . . . 14 . 4 . . 3 . Catastrophic 27 | . 1 . . . 1 3 . 3 3 . . . . 2 . . . . 7 . . . . 5 . 2 . . . . Database Lockouts . | . . . . . . . . . . . . . . . . . . . . . . . . . . . . . . . Manual 73 | . 4 7 . . 5 4 . 9 5 . 1 . . 11 . . . . 11 . . . . 11 . 4 1 . . . Terminals 127 | . 3 7 . . 10 12 . 18 5 . . . . 25 . . . . 24 . . . . 16 . 4 . . 3 . Fabricators 19 | . . . . . . 3 . . . . . . . 1 . . . . 5 . . . . 10 . . . . . . Repair Stations . | . . . . . . . . . . . . . . . . . . . . . . . . . . . . . . . Recycling Units 10 | . . . . . . . . 3 . . . . . . . . . . 7 . . . . . . . . . . . Scanalyzers 2 | . . . . . . . . . . . . . . 2 . . . . . . . . . . . . . . . . Garrison Access 10 | . . . . . . . . . . . . . . 5 . . . . 2 . . . . 2 . . . . . 1 Terminal Hacks 90 | . . 4 1 . 5 2 . 9 . . . . . 9 . . 27 . 8 . . 17 . 5 1 1 1 . . . Record 17 | . . . 1 . . . . . . . . . . . . . 11 . . . . 5 . . . . . . . . Part Schematic 16 | . . . . . . . . 3 . . . . . 1 . . 8 . . . . 4 . . . . . . . . Robot Schematic 5 | . . . . . . . . . . . . . . . . . 5 . . . . . . . . . . . . . Robot Analysis 4 | . . . . . . . . . . . . . . . . . . . . . . 4 . . . . . . . . Prototype ID Bank 11 | . . 3 . . . . . . . . . . . 1 . . 3 . . . . 4 . . . . . . . . Open Door 3 | . . . . . . . . . . . . . . . . . . . . . . . . . 1 1 1 . . . Branch Access Points 4 | . . . . . 1 . . 1 . . . . . . . . . . 1 . . . . 1 . . . . . . Terminal Index 1 | . . . . . . . . . . . . . . 1 . . . . . . . . . . . . . . . . Alert Level 1 | . . . . . . . . 1 . . . . . . . . . . . . . . . . . . . . . . Unreport Threat 11 | . . 1 . . 2 . . 2 . . . . . 3 . . . . 2 . . . . 1 . . . . . . Locate Traps 5 | . . . . . . 1 . 1 . . . . . 1 . . . . 2 . . . . . . . . . . . Recall Extermination 1 | . . . . . . . . . . . . . . . . . . . . . . . . 1 . . . . . . Hauler Manifests 4 | . . . . . 1 . . 1 . . . . . 1 . . . . . . . . . 1 . . . . . . Registered Components 3 | . . . . . 1 . . . . . . . . 1 . . . . 1 . . . . . . . . . . . Zone Layout 4 | . . . . . . 1 . . . . . . . . . . . . 2 . . . . 1 . . . . . . Fabricator Hacks 8 | . . . . . . 1 . . . . . . . . . . . . 2 . . . . 5 . . . . . . Load Schematic 4 | . . . . . . . . . . . . . . . . . . . 1 . . . . 3 . . . . . . Build 4 | . . . . . . 1 . . . . . . . . . . . . 1 . . . . 2 . . . . . . Repair Station Hacks . | . . . . . . . . . . . . . . . . . . . . . . . . . . . . . . . Recycling Unit Hacks 1 | . . . . . . . . . . . . . . . . . . . 1 . . . . . . . . . . . Retrieve Components 1 | . . . . . . . . . . . . . . . . . . . 1 . . . . . . . . . . . Scanalyzer 1 | . . . . . . . . . . . . . . 1 . . . . . . . . . . . . . . . . Insert Component 1 | . . . . . . . . . . . . . . 1 . . . . . . . . . . . . . . . . Garrison Access Hacks 3 | . . . . . . . . . . . . . . . . . . . . . . . . 2 . . . . . 1 Seal Access 3 | . . . . . . . . . . . . . . . . . . . . . . . . 2 . . . . . 1 Unauthorized Hacks 9 | . . . . . . 1 . 2 . . . . . 3 . . . . 1 . . . . 2 . . . . . . Terminals 4 | . . . . . . . . 1 . . . . . 2 . . . . . . . . . 1 . . . . . . Botnet 4 | . . . . . . . . 1 . . . . . 2 . . . . . . . . . 1 . . . . . . Fabricators 4 | . . . . . . 1 . . . . . . . 1 . . . . 1 . . . . 1 . . . . . . Prioritize 1 | . . . . . . . . . . . . . . . . . . . . . . . . 1 . . . . . . Haulers 1 | . . . . . . . . . . . . . . 1 . . . . . . . . . . . . . . . . Overload 1 | . . . . . . 1 . . . . . . . . . . . . . . . . . . . . . . . . Download 1 | . . . . . . . . . . . . . . . . . . . 1 . . . . . . . . . . . Repair Stations . | . . . . . . . . . . . . . . . . . . . . . . . . . . . . . . . Recycling Units 1 | . . . . . . . . 1 . . . . . . . . . . . . . . . . . . . . . . Tunnel 1 | . . . . . . . . 1 . . . . . . . . . . . . . . . . . . . . . . Scanalyzers . | . . . . . . . . . . . . . . . . . . . . . . . . . . . . . . . Garrison Access . | . . . . . . . . . . . . . . . . . . . . . . . . . . . . . . . Data Cores Recovered 2 | . . . . . . . . . . . . . . . . . . . 1 . . . . 1 . . . . . . Used . | . . . . . . . . . . . . . . . . . . . . . . . . . . . . . . . Hacking Detections 60 | . 2 1 . . 3 5 . 7 1 . . . . 14 . . . . 14 . . . . 11 . 1 . . 1 . Full Trace Events 8 | . . 1 . . . 2 . 1 1 . . . . . . . . . 2 . . . . . . 1 . . . . Feedback Events 3 | . . . . . . 1 . 1 . . . . . . . . . . 1 . . . . . . . . . . . Corruption 3 | . . . . . . 1 . 1 . . . . . . . . . . 1 . . . . . . . . . . . Feedback Blocked . | . . . . . . . . . . . . . . . . . . . . . . . . . . . . . . . Robot Schematics Acquired 5 | . . . . . . . . . . . . . . . . . 5 . . . . . . . . . . . . . Robots Built 7 | . . . . . . 3 . . . . . . . . . . . . . . . . . 4 . . . . . . Matter 504 | . . . . . . 252 . . . . . . . . . . . . . . . . . 252 . . . . . . Time 201 | . . . . . . 134 . . . . . . . . . . . . . . . . . 67 . . . . . . Total Robot Build Rating 28 | . . . . . . 12 . . . . . . . . . . . . . . . . . 16 . . . . . . Part Schematics Acquired 17 | . . . . . . . . 3 . . . . . 1 . . 8 . 1 . . 4 . . . . . . . . Parts Built 4 | . . . . . . . . . . . . . . . . . . . 2 . . . . 2 . . . . . . Matter 556 | . . . . . . . . . . . . . . . . . . . 278 . . . . 278 . . . . . . Time 185 | . . . . . . . . . . . . . . . . . . . 46 . . . . 139 . . . . . . Total Part Build Rating 36 | . . . . . . . . . . . . . . . . . . . 18 . . . . 18 . . . . . . Parts Repaired . | . . . . . . . . . . . . . . . . . . . . . . . . . . . . . . . Time . | . . . . . . . . . . . . . . . . . . . . . . . . . . . . . . . Parts Recycled . | . . . . . . . . . . . . . . . . . . . . . . . . . . . . . . . Recycled Matter . | . . . . . . . . . . . . . . . . . . . . . . . . . . . . . . . Retrieved Matter . | . . . . . . . . . . . . . . . . . . . . . . . . . . . . . . . Retrieved Components 2 | . . . . . . . . . . . . . . . . . . . 2 . . . . . . . . . . . Parts Scanalyzed 1 | . . . . . . . . . . . . . . 1 . . . . . . . . . . . . . . . . Part Schematics Acquired . | . . . . . . . . . . . . . . . . . . . . . . . . . . . . . . . Parts Damaged . | . . . . . . . . . . . . . . . . . . . . . . . . . . . . . . . Bothacking | -11 -10 -10 -10 -9 -8 -7 -7 -7 -7 -7 -7 -7 -6 -6 -6 -6 -6 -5 -5 -5 -5 -5 -4 -4 -4 -4 -4 -3 -3 -2 ------------ Run | Scr Mat Min Exi Min Mat Fac Was Fac Low Low Zio Dee Pro Fac Low Low Dat Pro Fac Upp Upp Zhi Pro Fac Upp Upp War Pro Res Res Used RIF Installer . | . . . . . . . . . . . . . . . . . . . . . . . . . . . . . . . Robots Hacked . | . . . . . . . . . . . . . . . . . . . . . . . . . . . . . . . Non-combat . | . . . . . . . . . . . . . . . . . . . . . . . . . . . . . . . Combat . | . . . . . . . . . . . . . . . . . . . . . . . . . . . . . . . Robot Hacks Applied . | . . . . . . . . . . . . . . . . . . . . . . . . . . . . . . . Relay Couplers Released 6 | . . . . . . . . . . . . . . . . . . . . . . . . . . . . . . 6 Programmers 6 | . . . . . . . . . . . . . . . . . . . . . . . . . . . . . . 6 Robots Rewired 6 | . . . . . . . . . . . . . . . . . . 2 . 1 . . . . . . . 3 . . Allies Hacked 1 | . . . . . . . . . . 1 . . . . . . . . . . . . . . . . . . . . Hacks Repelled . | . . . . . . . . . . . . . . . . . . . . . . . . . . . . . . . Allies | -11 -10 -10 -10 -9 -8 -7 -7 -7 -7 -7 -7 -7 -6 -6 -6 -6 -6 -5 -5 -5 -5 -5 -4 -4 -4 -4 -4 -3 -3 -2 -------- Run | Scr Mat Min Exi Min Mat Fac Was Fac Low Low Zio Dee Pro Fac Low Low Dat Pro Fac Upp Upp Zhi Pro Fac Upp Upp War Pro Res Res Total Allies 41 | . . 4 . . . 3 20 . . . 2 1 . . . . . 3 . 1 . . . 4 . . . 3 . . Largest Group 19 | . . 4 4 4 . 2 19 19 4 3 3 4 . . . . . 2 2 1 . . . 4 . . . 2 2 . Highest-Rated Group 477 | . . 71 71 71 . 40 477 477 126 95 221 339 . . . . . 94 59 29 . . . 48 . . . 76 76 . Highest-Rated Ally 118 | . . 31 31 31 . 20 35 35 33 33 94 118 . . . . . 94 30 29 . . . 12 . . . 47 38 . Total Orders . | . . . . . . . . . . . . . . . . . . . . . . . . . . . . . . . Ally Attacks 371 | . . . . 31 . 2 9 188 14 15 . 55 . . . . . 17 6 1 . . . 17 . . . 3 13 . Total Damage 9370 | . . . . 417 . . 164 3061 226 171 . 3798 . . . . . 514 78 18 . . . 237 . . . 76 610 . Kills 64 | . . . . 6 . . . 28 3 2 . 17 . . . . . 6 . . . . . . . . . . 2 . Allies Corrupted 3 | . . . . . . 3 . . . . . . . . . . . . . . . . . . . . . . . . Allies Melted . | . . . . . . . . . . . . . . . . . . . . . . . . . . . . . . . Intel | -11 -10 -10 -10 -9 -8 -7 -7 -7 -7 -7 -7 -7 -6 -6 -6 -6 -6 -5 -5 -5 -5 -5 -4 -4 -4 -4 -4 -3 -3 -2 ------- Run | Scr Mat Min Exi Min Mat Fac Was Fac Low Low Zio Dee Pro Fac Low Low Dat Pro Fac Upp Upp Zhi Pro Fac Upp Upp War Pro Res Res Robot Analysis Total 4 | . . . . . . . . . . . . . . . . . . . . . . 4 . . . . . . . . Derelict Logs Recovered 12 | . . 1 . . . . . . 1 . . . 1 . 1 1 . . . 2 1 . . . 1 3 . . . . Drone Launches . | . . . . . . . . . . . . . . . . . . . . . . . . . . . . . . . Drone Recoveries . | . . . . . . . . . . . . . . . . . . . . . . . . . . . . . . . Exploration | -11 -10 -10 -10 -9 -8 -7 -7 -7 -7 -7 -7 -7 -6 -6 -6 -6 -6 -5 -5 -5 -5 -5 -4 -4 -4 -4 -4 -3 -3 -2 ------------- Run | Scr Mat Min Exi Min Mat Fac Was Fac Low Low Zio Dee Pro Fac Low Low Dat Pro Fac Upp Upp Zhi Pro Fac Upp Upp War Pro Res Res Turns Passed 29028 | 52 350 469 153 241 525 512 611 1119 644 561 1505 1012 401 2656 990 705 75 954 2078 873 711 227 1203 1878 699 704 780 2001 809 3530 Spaces Moved 18344 | 50 224 379 128 139 507 446 470 904 566 423 1245 705 329 2120 849 619 81 632 1079 458 419 140 557 888 420 403 412 680 407 1665 Core 2 | 2 . . . . . . . . . . . . . . . . . . . . . . . . . . . . . . Treads 7189 | . . . . . . . . . . . . . . . . . . . 740 458 419 140 557 888 420 403 412 680 407 1665 Legs . | . . . . . . . . . . . . . . . . . . . . . . . . . . . . . . . Wheels 10554 | 48 224 379 128 139 77 277 470 904 566 423 1245 705 329 2120 849 619 81 632 339 . . . . . . . . . . . Hover 599 | . . . . . 430 169 . . . . . . . . . . . . . . . . . . . . . . . . Flight . | . . . . . . . . . . . . . . . . . . . . . . . . . . . . . . . Fastest Speed 38 | 50 80 80 90 90 45 38 100 100 100 100 100 100 100 93 93 93 93 93 93 150 150 150 150 145 145 145 145 145 145 145 Average Speed 115 | 78 80 89 90 90 54 78 100 100 100 104 107 101 100 94 93 93 93 93 134 150 150 150 150 146 145 145 145 145 145 147 Slowest Speed 150 | 80 80 90 90 90 90 100 100 100 100 110 110 110 100 100 93 93 93 93 150 150 150 150 150 150 145 145 145 145 145 148 Overloaded Moves . | . . . . . . . . . . . . . . . . . . . . . . . . . . . . . . . Propulsion Burnouts . | . . . . . . . . . . . . . . . . . . . . . . . . . . . . . . . Robots Hopped . | . . . . . . . . . . . . . . . . . . . . . . . . . . . . . . . Cave-ins Triggered . | . . . . . . . . . . . . . . . . . . . . . . . . . . . . . . . Exploration Rate (%) 57 | 3 56 75 48 33 48 19 95 36 77 65 85 73 67 53 90 73 70 72 41 74 68 57 69 28 54 58 58 74 16 53 Regions Visited 30 Branch Regions 20 Pre-discovered Areas 11 | . . 1 1 . . . . 1 1 . . . . . . . 1 . . . 1 3 . . . 2 . . . . Known Exits Taken 23 | . . . . . 1 . . 1 1 1 1 1 1 1 1 1 1 1 1 1 1 1 1 1 1 1 1 1 1 . Unknown Exits Taken 5 | 1 1 1 1 1 . . . . . . . . . . . . . . . . . . . . . . . . . . Scrap Searched 45 | . . 1 . . . . . . 12 2 5 . 1 . 3 5 . 1 . 1 2 . 4 . 4 4 . . . . Spaces Dug 86 | . . . . . 14 . . 7 2 1 2 2 . 8 . 17 . 1 13 . . . 1 4 2 . 3 4 1 4 Terrain Destroyed 1156 | . . . . 15 14 . . 75 52 10 2 17 44 94 68 30 . 97 78 8 3 . 22 202 9 36 62 47 26 145 Melee 2 | . . . . . . . . . . . 2 . . . . . . . . . . . . . . . . . . . Projectile 568 | . . . . . . . . 24 4 10 . 17 8 57 29 30 . 46 48 2 3 . 5 51 9 21 20 25 26 133 AOE 586 | . . . . 15 14 . . 51 48 . . . 36 37 39 . . 51 30 6 . . 17 151 . 15 42 22 . 12 Terrain Rammed . | . . . . . . . . . . . . . . . . . . . . . . . . . . . . . . . Walls Destroyed . | . . . . . . . . . . . . . . . . . . . . . . . . . . . . . . . Machines Disabled . | . . . . . . . . . . . . . . . . . . . . . . . . . . . . . . . Actions | -11 -10 -10 -10 -9 -8 -7 -7 -7 -7 -7 -7 -7 -6 -6 -6 -6 -6 -5 -5 -5 -5 -5 -4 -4 -4 -4 -4 -3 -3 -2 --------- Run | Scr Mat Min Exi Min Mat Fac Was Fac Low Low Zio Dee Pro Fac Low Low Dat Pro Fac Upp Upp Zhi Pro Fac Upp Upp War Pro Res Res Total 24071 | 59 331 473 165 200 675 579 572 1041 629 507 1355 949 372 2561 969 706 80 888 1454 604 461 157 871 1274 489 475 535 1632 549 2459 Wait 3203 | 3 59 64 38 11 72 49 34 43 36 25 52 144 15 243 36 58 . 123 116 96 4 6 252 184 30 31 21 796 57 505 Move 18315 | 49 223 378 127 138 506 446 469 903 565 422 1244 704 328 2119 848 618 80 631 1078 457 418 139 556 887 419 402 411 679 406 1665 Hop . | . . . . . . . . . . . . . . . . . . . . . . . . . . . . . . . Pick Up 68 | . . 1 . 1 2 4 . 2 2 2 . 3 1 8 2 1 . 4 8 2 . 1 5 4 1 1 2 5 4 2 Fast Attach 206 | 5 3 3 . 3 19 9 1 10 2 10 10 23 1 22 2 . . 1 26 . . 6 . 7 2 1 11 3 11 15 Attach 13 | . . . . 1 1 2 . 1 . . . 1 1 3 . . . . . . . . . 1 . . . . 1 1 Detach 3 | . . . . 1 . . . . . . . 1 . . . . . . . . . . . . . . . . 1 . Swap 47 | 1 . . . . 4 1 1 4 7 1 . 3 3 2 4 . . 5 2 4 . . . 1 . . 1 3 . . Drop 252 | 1 1 2 . 3 16 14 1 10 5 10 10 27 2 26 4 1 . 6 29 4 1 5 4 12 3 2 13 8 13 19 Fire 1107 | . 31 18 . 30 43 38 42 42 9 16 2 26 13 96 39 19 . 51 107 28 19 . 36 112 13 26 37 43 41 130 Melee 37 | . . . . . . . . . . . 37 . . . . . . . . . . . . . . . . . . . Ram . | . . . . . . . . . . . . . . . . . . . . . . . . . . . . . . . Kick . | . . . . . . . . . . . . . . . . . . . . . . . . . . . . . . . Crush 1 | . . . . . . . . . . . . . . . . . . . . . . . . 1 . . . . . . Escape Stasis . | . . . . . . . . . . . . . . . . . . . . . . . . . . . . . . . Rewire 51 | . . . . . . . . . . . . . . . . . . 10 . 3 . . . . . . . 38 . . Trap 2 | . . . . . . . . . . . . . . . . . . . . . . . . . . . . 2 . . Miscellaneous 766 | . 14 7 . 12 12 16 24 26 3 21 . 17 8 42 34 9 . 57 88 10 19 . 18 65 21 12 39 55 15 122 Route ------- -11/Scrapyard -10/Materials (discovered 3 exits: [*Mat] / *Min x2) -10/Mines (discovered 2 exits: [*Mat] / *Exi) -10/Exiles -9/Mines -8/Materials (discovered 2 exits: *Fac x2) -7/Factory -7/Waste -7/Factory (discovered 4 exits: *Fac / *Sto / *Low x2) -7/Lower Caves -7/Lower Caves -7/Zion (discovered 2 exits: *Dee / [*Pro]) -7/Deep Caves -6/Proximity Caves -6/Factory (discovered 2 exits: *Fac / *Low) -6/Lower Caves -6/Lower Caves (discovered 2 exits: Fac / *Dat) -6/Data Miner -5/Proximity Caves -5/Factory (discovered 5 exits: *Fac x3 / *Upp x2) -5/Upper Caves -5/Upper Caves (discovered 2 exits: *Fac / *Zhi) -5/Zhirov -4/Proximity Caves -4/Factory (discovered 7 exits: *Res x3 / *Upp x2 / *Ext x2) -4/Upper Caves -4/Upper Caves (discovered 2 exits: Res / *War) -4/Warlord -3/Proximity Caves -3/Research (discovered 2 exits: *Res / Qua) -2/Research (discovered 1 exit: *Tes) History --------- Turn | Location | Event 1 | -11/Scrapyard | Upgraded with Propulsion slot (x1) 1 | -11/Scrapyard | Upgraded with Utility slot (x1) 1 | -11/Scrapyard | Upgraded with Weapon slot (x1) 17 | -11/Scrapyard | Discovered new exit (range 16) 53 | -11/Scrapyard | Entered Materials 76 | -10/Materials | Discovered new exit (range 16) 98 | -10/Materials | Discovered new exit (range 16) 273 | -10/Materials | Discovered new exit (range 16) 317 | -10/Materials | Build established: Mutant 380 | -10/Materials | Reached level 2 403 | -10/Materials | Entered Mines 425 | -10/Mines | Met a Derelict bent on vengeance 430 | -10/Mines | Learned location of Mines (-9) 431 | -10/Mines | Discovered new exit (range 7) 448 | -10/Mines | Upgraded with Utility slot (x1) 701 | -10/Mines | Received a Mining Laser from a helpful Derelict 819 | -10/Mines | Assisted by bots powering up and referring to "LRC-V3" 855 | -10/Mines | Deemed a non-threat by the Exiles lab entrance 855 | -10/Mines | Discovered new exit (range 5) 872 | -10/Mines | Entered Exiles 872 | -10/Exiles | Accompanied by 4 allies 894 | -10/Exiles | Met 8R-AWN 909 | -10/Exiles | Met EX-HEX 945 | -10/Exiles | Met EX-DEC 949 | -10/Exiles | Learned location of Zion (-7) 977 | -10/Exiles | Discovered new exit (range 10) 1025 | -10/Exiles | Entered Mines 1025 | -9/Mines | Accompanied by 4 allies 1026 | -9/Mines | Assembled infested the area 1027 | -9/Mines | Reached level 3 1048 | -9/Mines | Upgraded with Utility slot (x1) 1128 | -9/Mines | Core integrity fell below 50% 1180 | -9/Mines | Core integrity fell below 20% 1252 | -9/Mines | Discovered new exit (range 16) 1266 | -9/Mines | Entered Materials 1267 | -8/Materials | Core integrity fell below 50% 1268 | -8/Materials | Reached level 4 1294 | -8/Materials | Upgraded with Weapon slot (x1) 1364 | -8/Materials | Core integrity fell below 20% 1374 | -8/Materials | Reached level 5 1410 | -8/Materials | Upgraded with Propulsion slot (x1) 1673 | -8/Materials | Reached level 6 1678 | -8/Materials | Upgraded with Weapon slot (x1) 1680 | -8/Materials | Discovered new exit (range 10) 1738 | -8/Materials | Build established: Gunner 1790 | -8/Materials | Discovered new exit (range 4) 1790 | -8/Materials | Identified exit to Factory 1791 | -8/Materials | Entered Factory 1792 | -7/Factory | Core integrity fell below 50% 1793 | -7/Factory | Reached level 7 1793 | -7/Factory | Upgraded with Propulsion slot (x1) 2116 | -7/Factory | Reached level 8 2116 | -7/Factory | Upgraded with Utility slot (x1) 2244 | -7/Factory | Fabricated B-48 Gladiator? 2303 | -7/Factory | Sucked down chute 2303 | -7/Factory | Entered Waste 2304 | -7/Waste | Met a frightened Derelict 2312 | -7/Waste | Spotted C-40 Crusher 2323 | -7/Waste | Destroyed C-40 Crusher 2325 | -7/Waste | Spotted C-40 Crusher 2325 | -7/Waste | Spotted C-40 Crusher 2337 | -7/Waste | Destroyed C-40 Crusher 2339 | -7/Waste | Spotted C-40 Crusher 2364 | -7/Waste | Destroyed C-40 Crusher 2377 | -7/Waste | Spotted C-40 Crusher 2388 | -7/Waste | Destroyed C-40 Crusher 2420 | -7/Waste | Destroyed C-40 Crusher 2476 | -7/Waste | Spotted C-40 Crusher 2493 | -7/Waste | Destroyed C-40 Crusher 2547 | -7/Waste | Discovered new exit (range 16) 2731 | -7/Waste | Warlord forces began an assault 2879 | -7/Waste | Identified exit to Factory 2914 | -7/Waste | Entered Factory 2914 | -7/Factory | Accompanied by 19 allies 3072 | -7/Factory | Discovered new exit (range 14) 3074 | -7/Factory | Reached level 9 3087 | -7/Factory | Identified exit to Factory 3252 | -7/Factory | Reached level 10 3277 | -7/Factory | Upgraded with Utility slot (x1) 3321 | -7/Factory | Reached level 11 3431 | -7/Factory | Build established: Skirmisher 3431 | -7/Factory | Reached level 12 3432 | -7/Factory | Upgraded with Utility slot (x1) 3558 | -7/Factory | Reached level 13 3587 | -7/Factory | Discovered new exit (range 15) 3596 | -7/Factory | Found Prototype Launcher 3596 | -7/Factory | Identified Rocket Array 3620 | -7/Factory | Identified exit to Storage 3620 | -7/Factory | Identified exit to Lower Caves 3714 | -7/Factory | First assault squad dispatched 3784 | -7/Factory | Reached level 14 3999 | -7/Factory | Reached level 15 4033 | -7/Factory | Entered Lower Caves 4033 | -7/Lower Caves | Accompanied by 4 allies 4176 | -7/Lower Caves | Discovered new exit (range 22) 4656 | -7/Lower Caves | Identified exit to Lower Caves 4677 | -7/Lower Caves | Entered another Lower Caves area 4677 | -7/Lower Caves | Accompanied by 3 allies 4699 | -7/Lower Caves | Found Alien Artifact 4699 | -7/Lower Caves | Identified Core Expander 4699 | -7/Lower Caves | Installed Core Expander, added new Propulsion slot 4836 | -7/Lower Caves | Reached level 16 5065 | -7/Lower Caves | Upgraded with Power slot (x1) 5109 | -7/Lower Caves | Encountered a Warlord checkpoint 5110 | -7/Lower Caves | Discovered new exit (range 11) 5127 | -7/Lower Caves | Identified exit to Zion 5163 | -7/Lower Caves | Attracted the attention of an 0b10 checkpoint 5238 | -7/Lower Caves | Entered Zion 5238 | -7/Zion | Accompanied by 1 ally 5251 | -7/Zion | Given A8's code to call for help 5284 | -7/Zion | Discovered new exit (range 23) 5674 | -7/Zion | Given the Hacking Drone Bay 5899 | -7/Zion | Discovered new exit (range 10) 6216 | -7/Zion | Build established: Mutant 6547 | -7/Zion | Build established: Assassin 6687 | -7/Zion | Enhanced Grunt warped into view, answering call for help 6688 | -7/Zion | Enhanced Grunt warped into view, answering call for help 6726 | -7/Zion | Saw the warning signs outside the Deep Caves entrance 6729 | -7/Zion | Identified exit to Deep Caves 6743 | -7/Zion | Entered Deep Caves 6743 | -7/Deep Caves | Accompanied by 3 allies 6745 | -7/Deep Caves | Met 5H-AD0 6820 | -7/Deep Caves | Z-Facility disabled 6866 | -7/Deep Caves | Attacked by Z-Imprinter 6876 | -7/Deep Caves | Allies destroyed Z-Imprinter 6902 | -7/Deep Caves | Found Prototype Protection 6902 | -7/Deep Caves | Identified Zio. Weapon Casing 7198 | -7/Deep Caves | Found Prototype Device 7198 | -7/Deep Caves | Identified Exp. Thermal Shield 7269 | -7/Deep Caves | Found Zio. Weapon Casing 7522 | -7/Deep Caves | Build established: Scavenger-Skirmisher 7540 | -7/Deep Caves | Found Zio. Weapon Casing 7664 | -7/Deep Caves | Discovered new exit (range 22) 7701 | -7/Deep Caves | Spotted as-79834 7705 | -7/Deep Caves | Exposed GOLEM chamber 7754 | -7/Deep Caves | Identified exit to Proximity Caves 7755 | -7/Deep Caves | Entered Proximity Caves 7757 | -6/Proximity Caves | Reached level 17 7888 | -6/Proximity Caves | Learned Factory emergency access door positions 8030 | -6/Proximity Caves | Discovered exit to Factory (range 20) 8125 | -6/Proximity Caves | Reached level 18 8156 | -6/Proximity Caves | Entered Factory 8257 | -6/Factory | Discovered new exit (range 23) 8474 | -6/Factory | Identified exit to Factory 8819 | -6/Factory | Discovered new exit (range 14) 8832 | -6/Factory | Identified exit to Lower Caves 8985 | -6/Factory | Reached level 19 9602 | -6/Factory | Found Prototype Processor 9602 | -6/Factory | Identified Exp. Signal Interpreter 10812 | -6/Factory | Entered Lower Caves 10984 | -6/Lower Caves | Attracted the attention of an 0b10 base 11021 | -6/Lower Caves | Reached level 20 11309 | -6/Lower Caves | Attracted the attention of an 0b10 checkpoint 11392 | -6/Lower Caves | Encountered a Warlord checkpoint 11472 | -6/Lower Caves | Discovered new exit (range 20) 11525 | -6/Lower Caves | Identified exit to Lower Caves 11600 | -6/Lower Caves | Learned Factory stockpile data 11802 | -6/Lower Caves | Entered another Lower Caves area 11925 | -6/Lower Caves | Encountered a Warlord checkpoint 12352 | -6/Lower Caves | Spotted B-75 Beast 12475 | -6/Lower Caves | Discovered new exit (range 21) 12500 | -6/Lower Caves | Identified exit to Data Miner 12507 | -6/Lower Caves | Entered Data Miner 12507 | -6/Data Miner | Discovered new exit (range 7) 12524 | -6/Data Miner | Met Data Miner 12545 | -6/Data Miner | Learned location of Section 7 (-2) 12545 | -6/Data Miner | Acquired the access code to Warlord's prototype stash 12559 | -6/Data Miner | Received God Mode back door access code from Data Miner 12579 | -6/Data Miner | Identified exit to Proximity Caves 12582 | -6/Data Miner | Entered Proximity Caves 12584 | -5/Proximity Caves | Reached level 21 12613 | -5/Proximity Caves | Escorted by Enhanced Grunt 12756 | -5/Proximity Caves | Attracted the attention of an 0b10 checkpoint 13191 | -5/Proximity Caves | Attracted the attention of an 0b10 outpost 13228 | -5/Proximity Caves | Destroyed 9 combat bots 13270 | -5/Proximity Caves | Reached level 22 13454 | -5/Proximity Caves | Upgraded with Propulsion slot (x1) 13460 | -5/Proximity Caves | Spotted B-75 Beast 13468 | -5/Proximity Caves | Destroyed B-75 Beast 13486 | -5/Proximity Caves | Discovered exit to Factory (range 7) 13536 | -5/Proximity Caves | Entered Factory 13536 | -5/Factory | Accompanied by 2 allies 13582 | -5/Factory | Incoming investigation squad redirected 13624 | -5/Factory | Fabricated Biometal Heavy Treads? 13683 | -5/Factory | Reached level 23 13836 | -5/Factory | First assault squad dispatched 13859 | -5/Factory | Incoming assault squad redirected 14167 | -5/Factory | Build established: Skirmisher 14339 | -5/Factory | Local fabrication network quarantined 14450 | -5/Factory | Upgraded with Weapon slot (x1) 14654 | -5/Factory | Garrison activated, responded to threat 14763 | -5/Factory | Incoming assault squad redirected 14793 | -5/Factory | Upgraded with Power slot (x1) 14952 | -5/Factory | Discovered new exit (range 22) 15049 | -5/Factory | Garrison activated, responded to threat 15084 | -5/Factory | Identified exit to Factory 15159 | -5/Factory | Build established: Generator-Skirmisher 15162 | -5/Factory | Identified exit to Upper Caves 15260 | -5/Factory | Discovered exit to Factory (range 12) 15310 | -5/Factory | Reached level 24 15479 | -5/Factory | High security lockdown imminent 15559 | -5/Factory | High security lockdown engaged 15602 | -5/Factory | Discovered exit to Factory (range 20) 15614 | -5/Factory | Entered Upper Caves 15630 | -5/Upper Caves | Attracted the attention of an 0b10 outpost 15667 | -5/Upper Caves | Learned Factory stockpile data 15785 | -5/Upper Caves | Identified exit to Upper Caves 16176 | -5/Upper Caves | Attracted the attention of an 0b10 checkpoint 16487 | -5/Upper Caves | Entered another Upper Caves area 16502 | -5/Upper Caves | Discovered exit to Factory (range 10) 16747 | -5/Upper Caves | Spotted B-75 Beast 16778 | -5/Upper Caves | Destroyed B-75 Beast 16805 | -5/Upper Caves | Learned location of Armory (-3) 16937 | -5/Upper Caves | Attracted the attention of an 0b10 checkpoint 17100 | -5/Upper Caves | Encountered a Warlord checkpoint 17107 | -5/Upper Caves | Discovered new exit (range 24) 17144 | -5/Upper Caves | Identified exit to Zhirov 17198 | -5/Upper Caves | Entered Zhirov 17198 | -5/Zhirov | Discovered new exit (range 3) 17225 | -5/Zhirov | Met Zhirov 17258 | -5/Zhirov | Learned location of Quarantine (-3) 17258 | -5/Zhirov | Learned location of Testing (-2) 17258 | -5/Zhirov | Learned location of Command (-1) 17282 | -5/Zhirov | Zhirov requested help retrieving the SGEMP Prototype 17309 | -5/Zhirov | Found Alien Artifact 17309 | -5/Zhirov | Identified Integrated Dissipator 17309 | -5/Zhirov | Installed Integrated Dissipator, increased core heat dissipation (+20) 17422 | -5/Zhirov | Identified exit to Proximity Caves 17425 | -5/Zhirov | Entered Proximity Caves 17582 | -4/Proximity Caves | Spotted B-86 Titan 17639 | -4/Proximity Caves | Build established: Generator-Mutant 17685 | -4/Proximity Caves | Reached level 25 17851 | -4/Proximity Caves | Destroyed B-86 Titan 18181 | -4/Proximity Caves | Discovered exit to Factory (range 12) 18401 | -4/Proximity Caves | Received a Behemoth hack from an annoying Tinkerer 18628 | -4/Proximity Caves | Entered Factory 18787 | -4/Factory | Discovered new exit (range 14) 18807 | -4/Factory | Identified exit to Research 18849 | -4/Factory | Upgraded with Utility slot (x1) 18966 | -4/Factory | Discovered new exit (range 17) 19197 | -4/Factory | Identified exit to Upper Caves 19197 | -4/Factory | Identified exit to Extension 19232 | -4/Factory | Fabricated Biometal Heavy Treads (x2) 19273 | -4/Factory | Reached level 26 19352 | -4/Factory | Discovered exit to Research (range 15) 19838 | -4/Factory | Fabricated S-27 Virus (x4) 19878 | -4/Factory | First assault squad dispatched 20041 | -4/Factory | Local fabrication network quarantined 20225 | -4/Factory | Discovered exit to Research (range 23) 20277 | -4/Factory | Incoming assault squad redirected 20318 | -4/Factory | Destroyed 8 combat bots 20408 | -4/Factory | High security lockdown imminent 20408 | -4/Factory | Reached level 27 20452 | -4/Factory | Destroyed 13 combat bots 20488 | -4/Factory | High security lockdown engaged 20506 | -4/Factory | Entered Upper Caves 20547 | -4/Upper Caves | Encountered a Warlord checkpoint 20554 | -4/Upper Caves | Spotted B-86 Titan 20608 | -4/Upper Caves | Destroyed B-86 Titan 20650 | -4/Upper Caves | Learned location of 1 exit from Proximity Caves 20822 | -4/Upper Caves | Upgraded with Propulsion slot (x1) 21025 | -4/Upper Caves | Discovered new exit (range 18) 21167 | -4/Upper Caves | Identified exit to Upper Caves 21205 | -4/Upper Caves | Entered another Upper Caves area 21218 | -4/Upper Caves | Discovered exit to Research (range 20) 21274 | -4/Upper Caves | Learned location of 1 exit from Research 21528 | -4/Upper Caves | Spotted B-86 Titan 21562 | -4/Upper Caves | Destroyed B-86 Titan 21749 | -4/Upper Caves | Encountered a Warlord checkpoint 21890 | -4/Upper Caves | Discovered new exit (range 16) 21908 | -4/Upper Caves | Identified exit to Warlord 21909 | -4/Upper Caves | Entered Warlord 21928 | -4/Warlord | Discovered new exit (range 24) 21960 | -4/Warlord | System corruption cleaned by Quarantine Array 22135 | -4/Warlord | Visited the Vortex Lab 22143 | -4/Warlord | Found Prototype Energy Gun 22143 | -4/Warlord | Identified Vortex Rail 22148 | -4/Warlord | Warlord's base attacked by MAIN.C 22279 | -4/Warlord | Met Warlord 22292 | -4/Warlord | Opened Warlord's prototype stash 22298 | -4/Warlord | Found Prototype Reactor 22298 | -4/Warlord | Identified Vortex Chain Reactor 22303 | -4/Warlord | Found Prototype Processor 22303 | -4/Warlord | Identified Exp. Targeting Computer 22311 | -4/Warlord | Found Prototype Processor 22311 | -4/Warlord | Identified Exp. Armor Integrity Analyzer 22314 | -4/Warlord | Found Prototype Device 22314 | -4/Warlord | Identified Thermal Barrier 22468 | -4/Warlord | Destroyed 8 combat bots 22488 | -4/Warlord | Spotted Striker 22498 | -4/Warlord | Warlord forces counterattacked 22512 | -4/Warlord | Spotted Striker 22589 | -4/Warlord | Spotted Executioner 22648 | -4/Warlord | Spotted Executioner 22648 | -4/Warlord | Spotted Executioner 22659 | -4/Warlord | Destroyed Executioner 22660 | -4/Warlord | Reached level 28 22661 | -4/Warlord | Destroyed Executioner 22676 | -4/Warlord | Found Prototype Device 22676 | -4/Warlord | Identified Adv. Kinecellerator 22681 | -4/Warlord | Identified exit to Proximity Caves 22682 | -4/Warlord | Destroyed 12 combat bots 22689 | -4/Warlord | Entered Proximity Caves 23082 | -3/Proximity Caves | Attracted the attention of an 0b10 outpost 23391 | -3/Proximity Caves | Build established: Generator-Skirmisher 23814 | -3/Proximity Caves | Build established: Generator-Mutant 24690 | -3/Proximity Caves | Entered Research 24690 | -3/Research | Accompanied by 2 allies 24691 | -3/Research | Identified exit to Quarantine 24692 | -3/Research | Reached level 29 24695 | -3/Research | Upgraded with Propulsion slot (x1) 25169 | -3/Research | Discovered new exit (range 24) 25233 | -3/Research | Identified exit to Research 25493 | -3/Research | Build established: Generator-Skirmisher 25499 | -3/Research | Entered another Research area 25499 | -2/Research | Warlord forces began assault on 0b10 25501 | -2/Research | Reached level 30 25609 | -2/Research | Research machine network offline 25767 | -2/Research | Spotted B-90 Cyclops 25778 | -2/Research | Found Prototype Device 25778 | -2/Research | Identified Exp. Force Field 25790 | -2/Research | Borebot progress halted 25797 | -2/Research | Destroyed B-90 Cyclops 25808 | -2/Research | Found Prototype Slashing Weapon 25808 | -2/Research | Identified Centrium Greatsword 25969 | -2/Research | Discovered new exit (range 6) 25977 | -2/Research | Identified exit to Testing 26092 | -2/Research | Found Prototype Device 26092 | -2/Research | Identified Exp. Focal Shield 26117 | -2/Research | Build established: Generator-Mutant 26183 | -2/Research | Borebot progress halted 26201 | -2/Research | Spotted Executioner 26204 | -2/Research | Spotted Striker 26215 | -2/Research | Destroyed Executioner 26219 | -2/Research | Destroyed Striker 26246 | -2/Research | Borebot progress halted 26397 | -2/Research | Reached level 31 26715 | -2/Research | Build established: Generator-Skirmisher 27001 | -2/Research | Spotted Striker 27062 | -2/Research | Spotted Striker 27064 | -2/Research | Spotted Striker 27066 | -2/Research | Destroyed Striker 27069 | -2/Research | Destroyed Striker 27091 | -2/Research | Spotted Striker 27091 | -2/Research | Spotted Executioner 27104 | -2/Research | Destroyed Striker 27152 | -2/Research | Met up with Warlord 27558 | -2/Research | Spotted Striker 27569 | -2/Research | Destroyed Striker 27593 | -2/Research | Spotted Striker 27595 | -2/Research | Spotted Striker 27598 | -2/Research | Destroyed Striker 27601 | -2/Research | Spotted Striker 27602 | -2/Research | Spotted Striker 27609 | -2/Research | Destroyed Striker 27612 | -2/Research | Destroyed Striker 27639 | -2/Research | Spotted Striker 27659 | -2/Research | Destroyed 7 combat bots 27857 | -2/Research | Warlord destroyed during the assault 27858 | -2/Research | Spotted Executioner 27861 | -2/Research | Destroyed Executioner 27861 | -2/Research | Reached level 32 27863 | -2/Research | Spotted Executioner 27955 | -2/Research | Upgraded with Utility slot (x1) 28190 | -2/Research | Spotted Executioner 28195 | -2/Research | Spotted Executioner 28198 | -2/Research | Destroyed Executioner 28207 | -2/Research | Destroyed Executioner 28457 | -2/Research | Spotted Striker 28472 | -2/Research | Spotted Striker 28487 | -2/Research | Attacked by Warlord forces 28487 | -2/Research | Spotted M8-AUG(D) 28487 | -2/Research | Spotted NR-M33(D) 28487 | -2/Research | Spotted A5-SQ1(B) 28495 | -2/Research | Destroyed M8-AUG(D) 28516 | -2/Research | Destroyed NR-M33(D) 28519 | -2/Research | Spotted L4-K3Q(L) 28532 | -2/Research | Destroyed L4-K3Q(L) 28535 | -2/Research | Destroyed A5-SQ1(B) 28556 | -2/Research | Destroyed 10 combat bots 28573 | -2/Research | Spotted HD-XNU(B) 28580 | -2/Research | Destroyed HD-XNU(B) 28587 | -2/Research | Destroyed 1J-JTS(B) 28638 | -2/Research | Destroyed MY-VR2(H) 28661 | -2/Research | Destroyed 9D-M8X(H) 29029 | -2/Research | Self-destructed Last Messages --------------- 28661_ Destroyed Component Analysis Suite. 28662_ Acquired 4 matter. 28662_ Acquired 11 matter. 28664_ KF-IMT(M) destroyed. 28665_ Acquired 15 matter. 28676_ Ended siege mode. 28678_ Dropped Protomatter-79. 28688_ Used Protomatter to restore core integrity (+237, depleted) 28693_ Used Protomatter to restore core integrity (+12, depleted) 28724_ Slug penetrates 47-BD8(b). 28724_ Slug penetrates Wall. 28724_ 47-BD8(b) destroyed. 28725_ Acquired 15 matter. 28747_ Used Protomatter to restore core integrity (+73) 28749_ ANNOUNCEMENT: Unaware assault squad dispatched in northwest quadrant. 28749_ ANNOUNCEMENT: Unaware assault squad dispatched in southwest quadrant. 28751_ Used Protomatter to restore part integrity (+81) 28899_ ANNOUNCEMENT: Unaware assault squad dispatched in southeast quadrant. 28899_ ANNOUNCEMENT: Unaware assault squad dispatched in northwest quadrant. 28911_ Activated siege mode. Map ----- +----------------------------------------------------+ | #??##?####?#?####?#### ""R"" " "%" ## = # | | ??#??##??############# "" "" " !#=!===%= | | ??#?##########?####### / " %%=!%%=% | | ???#?####?#?#?######## " "> =%%% !% | | ?????##?#?############ # !#%]% | | ??##????#?############ # *== #==%# | | ?#?#?################# """" # !%*! ! | | ???#?##?################"########### # = /=! | | ##?#################################% ! !*%= | | #?????#?##################### ! ===%!=% | | ###?#?####################### %%=/ =%! " | | ##?##?####################### """ "" * %%% # " | | ############################# """ """ != "" | | ##?########################## """* """!==%!% | | ######################## # ! [ [*%%[ # | | ############################# * ! =%[*%[ # | | #############################"" "" !!==*[ "# | | ##?##### | #############"Y= "" ==!*=! | | ######## # ###" "" =[%%!%=! | | ?####### """" # ### ! / ]%=!|=!! = | | ######## """" # ### %!=*=[%!= | | ######## """" # ########### [[%!*[ ! | | ######## """" # ########### #!!][!!!! | | ######## """" # ########### #!!%[!!# | | ## # ##########" # ==*=! | | ## ! # @##########" ## [ % # " | | ########/######/############### [ ! | | # * # # | | """ # *= # | | """ # h h ] # | | """ / % !%* | | # #################/######/"# # % ## | | # ############# # ### | | ###"# # ############# " # # ## | | !!! " ###########""" # # ## | | /%/* #############"""" # ### | | !!! "" ####"""" / # #### | | ! """## #### """ = # # % #### | | T"## #### # # ## | | """## #### [ # # # # | | ## ################### ##% #### | | ## # ### = % #### | | ## # #### | | ] === ## # " % #### | | =[= ## # "%" % # | | =[ ## # """"" ################## | | ## # "" F" ########## ####### | | ######/### "" " # #### | | !! # #### | | %!##### # """"""" #### | +----------------------------------------------------+ Best States ------------- Heat Dissipation 171 Coolant Potential 120 Energy Generation 101 Energy Capacity 1750 Matter Stores 350 Matter Capacity 850 Sight Range 17 Robot Scan Range 26 Terrain Scan Range 24 Terrain Scan Density 210 Power Amplification 30 Armor Coverage 150 Resistance: KI 20 Resistance: TH 50 Resistance: EM 25 Weapon Shielding 100 Evasion (%) 62 Targeting Accuracy 18 Armor Integrity Analysis 90 Recoil Reduction 8 Matter Filtering 50 Energy Filtering 30 Particle Charging 30 Kinecelleration 50 Offensive Hacking 10 Defensive Hacking 5 Item Schematics ----------------- Launcher Loader | -7/Factory | Hacked Adv. Shield Generator | -7/Factory | Hacked Lrn. Proton Cannon | -7/Factory | Hacked Adv. Coolant Injector | -6/Factory | Hacked Combat Drone Bay | -6/Data Miner | Free Lgt. Regenerative Plating | -6/Data Miner | Free Cmb. Gravmag System | -6/Data Miner | Free Triangulator | -6/Data Miner | Free Tactical Coordination Suite | -6/Data Miner | Free Exp. Transmission Jammer | -6/Data Miner | Free Exp. ECM Suite | -6/Data Miner | Free Cloaking Device | -6/Data Miner | Free Biometal Heavy Treads | -5/Factory | Downloaded Assault Drone Bay | -5/Zhirov | Free Exp. Heat Sink | -5/Zhirov | Free Exp. Optical Array | -5/Zhirov | Free Imp. Arc Thrower | -5/Zhirov | Free Robot Schematics ------------------ I-36 Angel | -6/Data Miner | Free X-72 Disruptor | -6/Data Miner | Free L-41 Fighter | -6/Data Miner | Free G-50 Soldier | -6/Data Miner | Free S-27 Virus | -6/Data Miner | Free Fabricated ------------ B-48 Gladiator | x3 | -7/Factory | Preloaded Biometal Heavy Treads | x2 | -5/Factory | Preloaded Biometal Heavy Treads | x2 | -4/Factory S-27 Virus | x4 | -4/Factory Alien Tech Used ----------------- Core Expander Integrated Dissipator Achievements -------------- None Challenges ------------ None RPGLIKE | -11 -10 -10 -10 -9 -8 -7 -7 -7 -7 -7 -7 -7 -6 -6 -6 -6 -6 -5 -5 -5 -5 -5 -4 -4 -4 -4 -4 -3 -3 -2 --------- Run | Scr Mat Min Exi Min Mat Fac Was Fac Low Low Zio Dee Pro Fac Low Low Dat Pro Fac Upp Upp Zhi Pro Fac Upp Upp War Pro Res Res Levels Raised 31 | . 1 . . 1 3 2 . 7 . 1 . . 2 1 1 . . 2 2 . . . 1 2 . . 1 . 1 3 XP Earned 49820 | 3000 1685 1030 200 1194 3555 3686 200 9506 950 701 220 636 2016 2648 741 278 152 2840 2393 389 298 105 1238 2532 188 318 824 1153 1221 3923 XP Spent 48600 | 2975 . 800 . 1840 4840 3040 . 10205 . 500 . 1120 1680 2895 1600 . . 2255 2200 450 . . . 2300 1700 . 1500 720 2000 3980 Upgrades 104 | 11 . 1 . 6 18 6 . 24 . 1 . 4 3 5 4 . . 3 2 1 . . . 1 1 . 1 4 1 7 Power Slot 2 | . . . . . . . . . . 1 . . . . . . . . 1 . . . . . . . . . . . Propulsion Slot 6 | 1 . . . . 1 1 . . . . . . . . . . . 1 . . . . . . 1 . . . 1 . Utility Slot 8 | 1 . 1 . 1 . 1 . 2 . . . . . . . . . . . . . . . 1 . . . . . 1 Weapon Slot 4 | 1 . . . . 2 . . . . . . . . . . . . . 1 . . . . . . . . . . . Core Integrity 24 | 1 . . . 2 5 . . 4 . . . . . 1 . . . 1 . . . . . . . . . 4 . 6 Heat Dissipation 21 | 1 . . . 2 2 . . 5 . . . 4 1 1 4 . . . . 1 . . . . . . . . . . Matter Storage 1 | . . . . . . . . 1 . . . . . . . . . . . . . . . . . . . . . . Mass Support 1 | 1 . . . . . . . . . . . . . . . . . . . . . . . . . . . . . . Inventory Capacity 6 | 1 . . . 1 . . . 2 . . . . . 1 . . . . . . . . . . . . 1 . . . Sight Range 1 | . . . . . . . . 1 . . . . . . . . . . . . . . . . . . . . . . Sensor Range 13 | . . . . . 6 . . 7 . . . . . . . . . . . . . . . . . . . . . . Terrain Scan Density 2 | . . . . . . 2 . . . . . . . . . . . . . . . . . . . . . . . . Ranged Accuracy 4 | 1 . . . . 1 . . . . . . . 1 . . . . 1 . . . . . . . . . . . . Hack Attack % 2 | . . . . . . 1 . . . . . . . 1 . . . . . . . . . . . . . . . . Hack Defense % 1 | . . . . . . 1 . . . . . . . . . . . . . . . . . . . . . . . . KI Resistance % 4 | 2 . . . . . . . 1 . . . . 1 . . . . . . . . . . . . . . . . . TH Resistance % 4 | 1 . . . . 1 . . 1 . . . . . 1 . . . . . . . . . . . . . . . . Protomatter Created 9262 | . 100 52 . 51 142 154 269 134 37 95 . . 60 669 420 52 . 555 1180 406 115 . 311 1294 155 198 557 404 332 1520 Integrity Restored 15139 | . 236 152 . 198 270 339 543 498 29 443 . 319 156 835 711 171 . 1110 1595 198 333 . 354 1285 402 251 797 1170 219 2525 Core 11859 | . 200 119 . 198 270 339 543 328 13 308 . 272 100 684 542 139 . 911 1256 134 258 . 284 1074 254 139 662 728 163 1941 Parts 3280 | . 36 33 . . . . . 170 16 135 . 47 56 151 169 32 . 199 339 64 75 . 70 211 148 112 135 442 56 584 Protomatter Decayed 13625 | . 19 . . 29 52 52 88 220 28 64 58 173 . 265 164 104 . 248 490 194 50 . 59 563 . 111 795 429 247 9123 Game ------ Seed LinkedGatlingTorch Manual? 0 Play Time 04:41:00 Cumulative 406.9 hours Start 2021.06.15 @ 13:23:39 End 2021.06.16 @ 01:18:16 Sessions 3 Manual Loads 0 Difficulty Rogue Special Mode Winter2019/RPGLIKE Game No. 155 Rogue 155 Adventurer 0 Explorer 0 Win Type - Total 28 Types 24/0/3/1/0/0/0/0/0 Lore% 83 Gallery% 89 Achievement% 76 Wizard Run 0 Options --------- ASCII 0 Keyboard 0 Movement Mouse Keybinds 0 Fullscreen 2 Font 12/Smallcaps Map View 83x54 Tactical HUD 1 Map Filters NONE Filters NONE Steam X RUN: 7bd744b9-28ec-4b29-b4da-2e90cc9da33f